[Event "SS Manhem Chess Week 2022: IM Tournament"]
[Site "Schackcentrum, Vegagatan 20, Gothenburg, Sweden"]
[Date "2022.08.09"]
[Round "5.2"]
[White "Heimisson, Hilmir Freyr"]
[Black "Mitusov, Semen"]
[Result "1-0"]
[TimeControl "90 minutes for 40 moves + 30 minutes for the rest of the game + 30 seconds per move from move one."]
[WhiteTitle "IM"]
[BlackTitle "FM"]
[WhiteFideId "2309998"]
[BlackFideId "14151049"]
[WhiteElo "2323"]
[BlackElo "2415"]

1. d4 {[%clk 01:30:54]} {[%emt 00:00:05]} d5 {[%clk 01:28:54]} {[%emt
00:02:06]} 2. c4 {[%clk 01:31:01]} {[%emt 00:00:23]} e6 {[%clk 01:28:46]}
{[%emt 00:00:39]} 3. Nf3 {[%clk 01:30:27]} {[%emt 00:01:04]} Nf6 {[%clk
01:28:56]} {[%emt 00:00:20]} 4. g3 {[%clk 01:29:49]} {[%emt 00:01:07]} dxc4
{[%clk 01:26:36]} {[%emt 00:02:51]} 5. Bg2 {[%clk 01:29:52]} {[%emt 00:00:26]}
Bd7 {[%clk 01:27:02]} {[%emt 00:00:06]} 6. Ne5 {[%clk 01:28:51]} {[%emt
00:01:30]} Bc6 {[%clk 01:27:23]} {[%emt 00:00:09]} 7. Nxc6 {[%clk 01:29:14]}
{[%emt 00:00:07]} Nxc6 {[%clk 01:27:49]} {[%emt 00:00:04]} 8. O-O {[%clk
01:29:34]} {[%emt 00:00:09]} Qd7 {[%clk 01:26:58]} {[%emt 00:01:21]} 9. e3
{[%clk 01:29:11]} {[%emt 00:00:53]} O-O-O {[%clk 01:27:20]} {[%emt 00:00:08]}
10. Nc3 {[%clk 01:26:41]} {[%emt 00:03:00]} h5 {[%clk 01:26:45]} {[%emt
00:01:06]} 11. b3 {[%clk 01:25:48]} {[%emt 00:01:23]} Bb4 {[%clk 01:19:41]}
{[%emt 00:07:34]} 12. Bb2 {[%clk 01:24:42]} {[%emt 00:01:36]} e5 {[%clk
01:08:19]} {[%emt 00:11:53]} 13. bxc4 {[%clk 01:22:57]} {[%emt 00:02:15]} Bxc3
{[%clk 01:03:44]} {[%emt 00:05:05]} 14. Bxc3 {[%clk 01:22:53]} {[%emt
00:00:33]} exd4 {[%clk 01:04:02]} {[%emt 00:00:12]} 15. exd4 {[%clk 01:21:42]}
{[%emt 00:01:41]} Nxd4 {[%clk 01:04:21]} {[%emt 00:00:11]} 16. Rb1 {[%clk
01:02:25]} {[%emt 00:19:47]} c6 {[%clk 01:00:42]} {[%emt 00:04:10]} 17. Bxd4
{[%clk 00:55:04]} {[%emt 00:07:51]} Qxd4 {[%clk 01:00:52]} {[%emt 00:00:20]} 18.
Qb3 {[%clk 00:55:09]} {[%emt 00:00:24]} Qb6 {[%clk 00:49:52]} {[%emt 00:11:31]}
19. Qa3 {[%clk 00:55:27]} {[%emt 00:00:11]} Qa6 {[%clk 00:49:53]} {[%emt
00:00:30]} 20. Qxa6 {[%clk 00:55:47]} {[%emt 00:00:09]} bxa6 {[%clk 00:50:19]}
{[%emt 00:00:05]} 21. Bxc6 {[%clk 00:56:09]} {[%emt 00:00:08]} Kc7 {[%clk
00:49:26]} {[%emt 00:01:23]} 22. Bb7 {[%clk 00:51:07]} {[%emt 00:05:32]} Rb8
{[%clk 00:43:48]} {[%emt 00:06:08]} 23. Bxa6 {[%clk 00:49:42]} {[%emt
00:01:54]} Rb6 {[%clk 00:26:57]} {[%emt 00:17:21]} 24. Bb5 {[%clk 00:48:46]}
{[%emt 00:01:26]} Rhb8 {[%clk 00:25:39]} {[%emt 00:01:48]} 25. Rbe1 {[%clk
00:46:59]} {[%emt 00:02:15]} a6 {[%clk 00:23:38]} {[%emt 00:02:33]} 26. Ba4
{[%clk 00:47:03]} {[%emt 00:00:25]} Kd6 {[%clk 00:23:02]} {[%emt 00:01:06]} 27.
Rc1 {[%clk 00:43:10]} {[%emt 00:04:22]} Kc5 {[%clk 00:22:58]} {[%emt 00:00:35]}
28. Bb3 {[%clk 00:22:45]} {[%emt 00:20:55]} Re8 {[%clk 00:21:51]} {[%emt
00:01:38]} 29. Rfd1 {[%clk 00:21:18]} {[%emt 00:01:56]} Rb7 {[%clk 00:20:05]}
{[%emt 00:02:17]} 30. Rd3 {[%clk 00:17:26]} {[%emt 00:04:22]} Rbe7 {[%clk
00:19:39]} {[%emt 00:00:56]} 31. Kg2 {[%clk 00:16:48]} {[%emt 00:01:07]} Re2
{[%clk 00:18:33]} {[%emt 00:01:36]} 32. Rf3 {[%clk 00:15:41]} {[%emt 00:01:37]}
a5 {[%clk 00:18:33]} {[%emt 00:00:31]} 33. h3 {[%clk 00:14:20]} {[%emt
00:01:51]} R8e5 {[%clk 00:18:10]} {[%emt 00:00:53]} 34. a3 {[%clk 00:11:42]}
{[%emt 00:03:09]} Rd2 {[%clk 00:16:39]} {[%emt 00:02:00]} 35. Ba4 {[%clk
00:09:42]} {[%emt 00:02:30]} Rd4 {[%clk 00:14:54]} {[%emt 00:02:16]} 36. Bb5
{[%clk 00:08:06]} {[%emt 00:02:06]} h4 {[%clk 00:15:20]} {[%emt 00:00:04]} 37.
g4 {[%clk 00:07:49]} {[%emt 00:00:46]} Rd8 {[%clk 00:12:24]} {[%emt 00:03:26]}
38. Rb1 {[%clk 00:04:55]} {[%emt 00:03:24]} Rd6 {[%clk 00:09:48]} {[%emt
00:03:06]} 39. Rbb3 {[%clk 00:03:46]} {[%emt 00:01:38]} Rd1 {[%clk 00:09:09]}
{[%emt 00:01:08]} 40. Rbe3 {[%clk 00:02:58]} {[%emt 00:01:18]} Re1 {[%clk
00:08:08]} {[%emt 00:01:31]} 41. Rxe1 {[%clk 00:26:45]} {[%emt 00:06:43]} Rxe1
{[%clk 00:38:34]} {[%emt 00:00:05]} 42. g5 {[%clk 00:26:08]} {[%emt 00:01:07]}
Nh5 {[%clk 00:38:50]} {[%emt 00:00:13]} 43. Rxf7 {[%clk 00:24:52]} {[%emt
00:01:47]} Re5 {[%clk 00:39:12]} {[%emt 00:00:08]} 44. g6 {[%clk 00:20:09]}
{[%emt 00:05:12]} Rg5+ {[%clk 00:37:48]} {[%emt 00:01:54]} 45. Kf3 {[%clk
00:20:26]} {[%emt 00:00:13]} Kb6 {[%clk 00:36:53]} {[%emt 00:01:25]} 46. a4
{[%clk 00:17:28]} {[%emt 00:03:28]} Kc5 {[%clk 00:36:20]} {[%emt 00:01:04]} 47.
Rd7 {[%clk 00:12:39]} {[%emt 00:05:18]} Re5 {[%clk 00:36:44]} {[%emt 00:00:06]}
48. Rc7+ {[%clk 00:09:41]} {[%emt 00:03:29]} Kd4 {[%clk 00:35:15]} {[%emt
00:01:58]} 49. c5 {[%clk 00:07:00]} {[%emt 00:03:11]} Rxc5 {[%clk 00:33:37]}
{[%emt 00:02:09]} 50. Rxc5 {[%clk 00:06:01]} {[%emt 00:01:28]} Kxc5 {[%clk
00:34:02]} {[%emt 00:00:05]} 51. Kg4 {[%clk 00:06:19]} {[%emt 00:00:12]} Nf6+
{[%clk 00:34:27]} {[%emt 00:00:05]} 52. Kxh4 {[%clk 00:06:31]} {[%emt
00:00:17]} Kd4 {[%clk 00:33:12]} {[%emt 00:01:46]} 53. f4 {[%clk 00:03:32]}
{[%emt 00:03:29]} Ke3 {[%clk 00:33:06]} {[%emt 00:00:36]} 54. Kg5 {[%clk
00:02:46]} {[%emt 00:01:15]} Kf3 {[%clk 00:33:30]} {[%emt 00:00:06]} 55. Bc6+
{[%clk 00:02:21]} {[%emt 00:00:55]} Kg3 {[%clk 00:33:44]} {[%emt 00:00:16]} 56.
h4 {[%clk 00:02:28]} {[%emt 00:00:23]} Ng4 {[%clk 00:34:10]} {[%emt 00:00:05]}
57. h5 {[%clk 00:02:27]} {[%emt 00:00:31]} Nf2 {[%clk 00:34:10]} {[%emt
00:00:29]} 58. h6 {[%clk 00:01:21]} {[%emt 00:01:36]} gxh6+ {[%clk 00:34:31]}
{[%emt 00:00:09]} 59. Kf5 {[%clk 00:00:48]} {[%emt 00:01:02]} 1-0

[Event "SS Manhem Chess Week 2022: IM Tournament"]
[Site "Schackcentrum, Vegagatan 20, Gothenburg, Sweden"]
[Date "2022.08.09"]
[Round "5.3"]
[White "Kucuksari, Kaan"]
[Black "Jacobsen, Mikkel Manosri"]
[Result "1-0"]
[TimeControl "90 minutes for 40 moves + 30 minutes for the rest of the game + 30 seconds per move from move one."]
[WhiteTitle "FM"]
[BlackTitle "FM"]
[WhiteFideId "6380166"]
[BlackFideId "1444514"]
[WhiteElo "2398"]
[BlackElo "2320"]

1. d4 {[%clk 01:29:37]} {[%emt 00:01:22]} d5 {[%clk 01:30:56]} {[%emt
00:00:04]} 2. c4 {[%clk 01:30:01]} {[%emt 00:00:06]} e6 {[%clk 01:31:22]}
{[%emt 00:00:05]} 3. Nf3 {[%clk 01:30:21]} {[%emt 00:00:09]} Nf6 {[%clk
01:31:47]} {[%emt 00:00:05]} 4. g3 {[%clk 01:30:46]} {[%emt 00:00:06]} Be7
{[%clk 01:32:10]} {[%emt 00:00:06]} 5. Bg2 {[%clk 01:31:10]} {[%emt 00:00:06]}
O-O {[%clk 01:32:36]} {[%emt 00:00:05]} 6. O-O {[%clk 01:31:33]} {[%emt
00:00:06]} dxc4 {[%clk 01:33:02]} {[%emt 00:00:04]} 7. Qc2 {[%clk 01:31:50]}
{[%emt 00:00:13]} b6 {[%clk 01:33:27]} {[%emt 00:00:05]} 8. Bg5 {[%clk
01:31:45]} {[%emt 00:00:34]} Nd5 {[%clk 01:33:51]} {[%emt 00:00:06]} 9. Bxe7
{[%clk 01:31:04]} {[%emt 00:01:12]} Qxe7 {[%clk 01:34:19]} {[%emt 00:00:02]} 10.
Qxc4 {[%clk 01:23:17]} {[%emt 00:08:17]} Bb7 {[%clk 01:34:44]} {[%emt
00:00:05]} 11. Ne5 {[%clk 01:16:51]} {[%emt 00:06:56]} c5 {[%clk 01:33:12]}
{[%emt 00:02:01]} 12. dxc5 {[%clk 01:09:12]} {[%emt 00:08:10]} Rc8 {[%clk
01:33:27]} {[%emt 00:00:15]} 13. Nd2 {[%clk 01:05:36]} {[%emt 00:04:07]} Rxc5
{[%clk 01:28:08]} {[%emt 00:05:48]} 14. Qa4 {[%clk 01:00:55]} {[%emt 00:05:07]}
Nc6 {[%clk 01:24:25]} {[%emt 00:04:16]} 15. Nd3 {[%clk 00:57:52]} {[%emt
00:03:33]} Ra5 {[%clk 01:24:29]} {[%emt 00:00:26]} 16. Qd1 {[%clk 00:57:39]}
{[%emt 00:00:42]} Ndb4 {[%clk 01:17:20]} {[%emt 00:07:40]} 17. Nc4 {[%clk
00:54:46]} {[%emt 00:03:23]} Rg5 {[%clk 01:06:22]} {[%emt 00:11:28]} 18. h4
{[%clk 00:44:15]} {[%emt 00:11:02]} Rh5 {[%clk 01:03:29]} {[%emt 00:03:22]} 19.
Bf3 {[%clk 00:34:25]} {[%emt 00:10:21]} Rf5 {[%clk 00:50:37]} {[%emt 00:13:21]}
20. Nxb4 {[%clk 00:29:32]} {[%emt 00:05:24]} Nxb4 {[%clk 00:41:12]} {[%emt
00:09:55]} 21. Bxb7 {[%clk 00:29:13]} {[%emt 00:00:49]} Qxb7 {[%clk 00:40:19]}
{[%emt 00:01:22]} 22. Nd6 {[%clk 00:29:26]} {[%emt 00:00:18]} Qe7 {[%clk
00:40:40]} {[%emt 00:00:09]} 23. Nxf5 {[%clk 00:29:36]} {[%emt 00:00:20]} exf5
{[%clk 00:41:04]} {[%emt 00:00:05]} 24. Qb3 {[%clk 00:15:24]} {[%emt 00:14:43]}
f4 {[%clk 00:40:11]} {[%emt 00:01:23]} 25. Qf3 {[%clk 00:13:50]} {[%emt
00:02:03]} Re8 {[%clk 00:40:21]} {[%emt 00:00:20]} 26. Qxf4 {[%clk 00:14:04]}
{[%emt 00:00:17]} h6 {[%clk 00:39:45]} {[%emt 00:01:05]} 27. Rfd1 {[%clk
00:13:38]} {[%emt 00:00:56]} g5 {[%clk 00:38:26]} {[%emt 00:01:49]} 28. hxg5
{[%clk 00:12:35]} {[%emt 00:01:33]} hxg5 {[%clk 00:38:54]} {[%emt 00:00:01]} 29.
Qc4 {[%clk 00:11:51]} {[%emt 00:01:15]} b5 {[%clk 00:37:03]} {[%emt 00:02:22]}
30. Qxb5 {[%clk 00:11:04]} {[%emt 00:01:17]} Nc2 {[%clk 00:37:30]} {[%emt
00:00:02]} 31. Rac1 {[%clk 00:10:36]} {[%emt 00:00:58]} Ne3 {[%clk 00:37:41]}
{[%emt 00:00:20]} 32. Rc7 {[%clk 00:07:57]} {[%emt 00:03:09]} Qe4 {[%clk
00:36:55]} {[%emt 00:01:15]} 33. Qxg5+ {[%clk 00:08:14]} {[%emt 00:00:13]} 1-0

[Event "SS Manhem Chess Week 2022: IM Tournament"]
[Site "Schackcentrum, Vegagatan 20, Gothenburg, Sweden"]
[Date "2022.08.09"]
[Round "5.4"]
[White "Ingebretsen, Jens E"]
[Black "Olsson, William"]
[Result "1-0"]
[TimeControl "90 minutes for 40 moves + 30 minutes for the rest of the game + 30 seconds per move from move one."]
[WhiteTitle "FM"]
[BlackTitle "FM"]
[WhiteFideId "1522965"]
[BlackFideId "1741721"]
[WhiteElo "2325"]
[BlackElo "2311"]

1. d4 {[%clk 01:30:39]} {[%emt 00:00:20]} d5 {[%clk 01:30:54]} {[%emt
00:00:06]} 2. Nf3 {[%clk 01:31:03]} {[%emt 00:00:06]} Nf6 {[%clk 01:31:20]}
{[%emt 00:00:04]} 3. Bf4 {[%clk 01:31:27]} {[%emt 00:00:06]} Bf5 {[%clk
01:31:30]} {[%emt 00:00:21]} 4. e3 {[%clk 01:31:51]} {[%emt 00:00:06]} Nbd7
{[%clk 01:28:49]} {[%emt 00:03:10]} 5. c4 {[%clk 01:31:24]} {[%emt 00:00:57]}
e6 {[%clk 01:27:18]} {[%emt 00:02:01]} 6. Nc3 {[%clk 01:28:55]} {[%emt
00:03:00]} c6 {[%clk 01:24:16]} {[%emt 00:03:31]} 7. Qb3 {[%clk 01:29:10]}
{[%emt 00:00:15]} Qb6 {[%clk 01:20:01]} {[%emt 00:04:45]} 8. c5 {[%clk
01:29:25]} {[%emt 00:00:15]} Qxb3 {[%clk 01:20:28]} {[%emt 00:00:04]} 9. axb3
{[%clk 01:29:51]} {[%emt 00:00:04]} a6 {[%clk 01:19:18]} {[%emt 00:01:41]} 10.
b4 {[%clk 01:29:28]} {[%emt 00:00:53]} Rc8 {[%clk 01:16:38]} {[%emt 00:03:10]}
11. h3 {[%clk 01:29:52]} {[%emt 00:00:06]} Be7 {[%clk 01:15:22]} {[%emt
00:01:45]} 12. Nd2 {[%clk 01:30:15]} {[%emt 00:00:07]} Bd8 {[%clk 01:10:23]}
{[%emt 00:05:29]} 13. Nb3 {[%clk 01:30:10]} {[%emt 00:00:35]} Bc7 {[%clk
01:10:28]} {[%emt 00:00:25]} 14. Bxc7 {[%clk 01:29:53]} {[%emt 00:00:47]} Rxc7
{[%clk 01:10:52]} {[%emt 00:00:05]} 15. b5 {[%clk 01:29:50]} {[%emt 00:00:34]}
cxb5 {[%clk 01:10:46]} {[%emt 00:00:37]} 16. Nxb5 {[%clk 01:29:33]} {[%emt
00:00:46]} axb5 {[%clk 01:10:39]} {[%emt 00:00:37]} 17. Ra8+ {[%clk 01:29:52]}
{[%emt 00:00:11]} Ke7 {[%clk 01:11:05]} {[%emt 00:00:04]} 18. Rxh8 {[%clk
01:30:18]} {[%emt 00:00:04]} Nf8 {[%clk 01:11:16]} {[%emt 00:00:19]} 19. Bxb5
{[%clk 01:30:10]} {[%emt 00:00:39]} b6 {[%clk 01:11:33]} {[%emt 00:00:13]} 20.
Ke2 {[%clk 01:25:09]} {[%emt 00:05:30]} 1-0

[Event "SS Manhem Chess Week 2022: IM Tournament"]
[Site "Schackcentrum, Vegagatan 20, Gothenburg, Sweden"]
[Date "2022.08.09"]
[Round "5.5"]
[White "Ernst, Thomas"]
[Black "Rydstrom, Tom"]
[Result "0-1"]
[TimeControl "90 minutes for 40 moves + 30 minutes for the rest of the game + 30 seconds per move from move one."]
[WhiteTitle "GM"]
[BlackTitle "FM"]
[WhiteFideId "1700065"]
[BlackFideId "1714830"]
[WhiteElo "2323"]
[BlackElo "2304"]

1. e4 {[%clk 01:30:56]} {[%emt 00:00:03]} e5 {[%clk 01:30:50]} {[%emt
00:00:12]} 2. Nf3 {[%clk 01:31:17]} {[%emt 00:00:08]} Nc6 {[%clk 01:31:07]}
{[%emt 00:00:13]} 3. Bb5 {[%clk 01:31:33]} {[%emt 00:00:14]} a6 {[%clk
01:31:33]} {[%emt 00:00:04]} 4. Ba4 {[%clk 01:31:58]} {[%emt 00:00:05]} Nf6
{[%clk 01:31:58]} {[%emt 00:00:06]} 5. O-O {[%clk 01:32:17]} {[%emt 00:00:10]}
b5 {[%clk 01:32:02]} {[%emt 00:00:27]} 6. Bb3 {[%clk 01:32:37]} {[%emt
00:00:09]} Bc5 {[%clk 01:32:14]} {[%emt 00:00:18]} 7. a4 {[%clk 01:32:08]}
{[%emt 00:00:59]} Rb8 {[%clk 01:31:53]} {[%emt 00:00:51]} 8. c3 {[%clk
01:31:58]} {[%emt 00:00:39]} d6 {[%clk 01:32:13]} {[%emt 00:00:10]} 9. d4
{[%clk 01:31:52]} {[%emt 00:00:35]} Bb6 {[%clk 01:32:27]} {[%emt 00:00:17]} 10.
Na3 {[%clk 01:31:40]} {[%emt 00:00:42]} O-O {[%clk 01:32:06]} {[%emt 00:00:51]}
11. axb5 {[%clk 01:31:45]} {[%emt 00:00:25]} axb5 {[%clk 01:32:32]} {[%emt
00:00:04]} 12. Nxb5 {[%clk 01:32:05]} {[%emt 00:00:09]} Bg4 {[%clk 01:32:27]}
{[%emt 00:00:35]} 13. d5 {[%clk 01:22:34]} {[%emt 00:10:01]} Ne7 {[%clk
01:32:52]} {[%emt 00:00:05]} 14. Bc2 {[%clk 01:22:27]} {[%emt 00:00:38]} Qd7
{[%clk 01:33:13]} {[%emt 00:00:09]} 15. c4 {[%clk 01:22:43]} {[%emt 00:00:14]}
Ng6 {[%clk 01:33:38]} {[%emt 00:00:04]} 16. h3 {[%clk 01:22:31]} {[%emt
00:00:42]} Bxh3 {[%clk 01:34:02]} {[%emt 00:00:07]} 17. gxh3 {[%clk 01:22:54]}
{[%emt 00:00:06]} Qxh3 {[%emt 00:01:03]} 18. Ng5 {[%clk 01:22:24]} Qg3+ {[%clk
01:34:54]} {[%emt 00:00:05]} 19. Kh1 {[%clk 01:22:47]} {[%emt 00:00:07]} Qh4+
{[%clk 01:35:21]} {[%emt 00:00:04]} 20. Kg2 {[%clk 01:22:55]} {[%emt 00:00:22]}
Nf4+ {[%clk 01:35:01]} {[%emt 00:00:50]} 21. Bxf4 {[%clk 01:22:57]} {[%emt
00:00:27]} exf4 {[%clk 01:35:28]} {[%emt 00:00:04]} 22. Nf3 {[%clk 01:15:01]}
{[%emt 00:08:25]} Qg4+ {[%clk 01:35:26]} {[%emt 00:00:33]} 23. Kh1 {[%clk
01:15:22]} {[%emt 00:00:09]} Rfe8 {[%clk 01:30:45]} {[%emt 00:05:11]} 24. Nc3
{[%clk 00:57:07]} {[%emt 00:18:43]} Re5 {[%clk 01:17:41]} {[%emt 00:13:36]} 25.
Nxe5 {[%clk 00:57:20]} {[%emt 00:00:17]} Qh3+ {[%clk 01:18:04]} {[%emt
00:00:07]} 26. Kg1 {[%clk 00:57:41]} {[%emt 00:00:07]} dxe5 {[%clk 01:17:45]}
{[%emt 00:02:11]} 0-1

[Event "SS Manhem Chess Week 2022: IM Tournament"]
[Site "Schackcentrum, Vegagatan 20, Gothenburg, Sweden"]
[Date "2022.08.10"]
[Round "6.1"]
[White "Heimisson, Hilmir Freyr"]
[Black "Pantzar, Milton"]
[Result "0-1"]
[TimeControl "90 minutes for 40 moves + 30 minutes for the rest of the game + 30 seconds per move from move one."]
[WhiteTitle "IM"]
[BlackTitle "IM"]
[WhiteFideId "2309998"]
[BlackFideId "1721003"]
[WhiteElo "2323"]
[BlackElo "2447"]

1. c4 {[%clk 01:29:46]} {[%emt 00:01:13]} e6 {[%clk 01:30:40]} {[%emt
00:00:21]} 2. Nf3 {[%clk 01:29:35]} {[%emt 00:00:39]} d5 {[%clk 01:30:25]}
{[%emt 00:00:46]} 3. d4 {[%clk 01:29:48]} {[%emt 00:00:18]} Nf6 {[%clk
01:28:35]} {[%emt 00:02:21]} 4. Nc3 {[%clk 01:28:44]} {[%emt 00:01:34]} c6
{[%clk 01:28:16]} {[%emt 00:00:49]} 5. e3 {[%clk 01:27:42]} {[%emt 00:01:31]}
Nbd7 {[%clk 01:27:35]} {[%emt 00:01:12]} 6. Be2 {[%clk 01:27:50]} {[%emt
00:00:21]} Be7 {[%clk 01:25:41]} {[%emt 00:02:24]} 7. O-O {[%clk 01:27:04]}
{[%emt 00:01:15]} O-O {[%clk 01:25:12]} {[%emt 00:01:00]} 8. b3 {[%clk
01:24:21]} {[%emt 00:03:13]} b6 {[%clk 01:23:36]} {[%emt 00:02:07]} 9. Bb2
{[%clk 01:24:23]} {[%emt 00:00:27]} Bb7 {[%clk 01:23:33]} {[%emt 00:00:34]} 10.
Bd3 {[%clk 01:16:29]} {[%emt 00:08:24]} Rc8 {[%clk 01:17:57]} {[%emt 00:06:06]}
11. Qe2 {[%clk 01:08:25]} {[%emt 00:08:33]} Qc7 {[%clk 01:11:31]} {[%emt
00:06:56]} 12. Rac1 {[%clk 00:59:58]} {[%emt 00:08:57]} Qb8 {[%clk 01:02:10]}
{[%emt 00:09:52]} 13. Rfd1 {[%clk 00:58:17]} {[%emt 00:02:10]} Rfe8 {[%clk
00:54:19]} {[%emt 00:08:22]} 14. Rc2 {[%clk 00:57:54]} {[%emt 00:00:52]} h6
{[%clk 00:51:10]} {[%emt 00:03:40]} 15. h3 {[%clk 00:54:38]} {[%emt 00:03:45]}
c5 {[%clk 00:40:06]} {[%emt 00:11:35]} 16. cxd5 {[%clk 00:50:55]} {[%emt
00:04:13]} exd5 {[%clk 00:38:29]} {[%emt 00:02:08]} 17. Bb5 {[%clk 00:50:01]}
{[%emt 00:01:24]} Red8 {[%clk 00:37:30]} {[%emt 00:01:28]} 18. Na4 {[%clk
00:43:51]} {[%emt 00:06:40]} Ne4 {[%clk 00:35:39]} {[%emt 00:02:21]} 19. Rdc1
{[%clk 00:41:06]} {[%emt 00:03:15]} Nf8 {[%clk 00:30:59]} {[%emt 00:05:10]} 20.
Ba3 {[%clk 00:29:44]} {[%emt 00:11:53]} Ne6 {[%clk 00:30:17]} {[%emt 00:01:12]}
21. Nd2 {[%clk 00:28:39]} {[%emt 00:01:34]} Nxd2 {[%clk 00:23:10]} {[%emt
00:07:37]} 22. Qxd2 {[%clk 00:28:17]} {[%emt 00:00:53]} Bg5 {[%clk 00:22:25]}
{[%emt 00:01:15]} 23. f4 {[%clk 00:05:45]} {[%emt 00:23:02]} Bf6 {[%clk
00:20:31]} {[%emt 00:02:25]} 24. dxc5 {[%clk 00:02:27]} {[%emt 00:03:48]} d4
{[%clk 00:19:18]} {[%emt 00:01:43]} 25. Kh1 {[%clk 00:00:49]} {[%emt 00:02:07]}
dxe3 {[%clk 00:13:41]} {[%emt 00:06:07]} 26. Qxe3 {[%clk 00:01:18]} Nd4 {[%clk
00:12:18]} {[%emt 00:01:53]} 27. Bd3 {[%clk 00:00:40]} {[%emt 00:01:08]} b5
{[%clk 00:07:52]} {[%emt 00:04:57]} 28. Nc3 {[%clk 00:00:39]} {[%emt 00:00:31]}
Nxc2 {[%clk 00:05:58]} {[%emt 00:02:24]} 29. Rxc2 {[%clk 00:00:55]} {[%emt
00:00:15]} Bd4 {[%clk 00:05:39]} {[%emt 00:00:48]} 30. Qg3 {[%clk 00:00:38]}
{[%emt 00:00:46]} Bxc5 {[%clk 00:05:49]} {[%emt 00:00:20]} 31. Nxb5 {[%clk
00:00:34]} {[%emt 00:00:35]} Bxa3 {[%clk 00:05:29]} {[%emt 00:00:50]} 32. Nxa3
{[%clk 00:00:35]} {[%emt 00:00:29]} Qd6 {[%clk 00:04:48]} {[%emt 00:01:11]} 33.
Bf5 {[%clk 00:00:33]} {[%emt 00:00:32]} Qxa3 {[%clk 00:03:22]} {[%emt
00:01:55]} 34. Bxc8 {[%clk 00:00:45]} {[%emt 00:00:18]} Rxc8 {[%clk 00:03:28]}
{[%emt 00:00:25]} 35. Re2 {[%clk 00:00:33]} {[%emt 00:00:42]} Qd6 {[%clk
00:02:36]} {[%emt 00:01:22]} 36. Qe3 {[%clk 00:00:41]} {[%emt 00:00:22]} Qb6
{[%clk 00:02:41]} {[%emt 00:00:26]} 37. Qd2 {[%clk 00:00:32]} {[%emt 00:00:40]}
Rd8 {[%clk 00:02:50]} {[%emt 00:00:20]} 38. Qc2 {[%clk 00:00:49]} {[%emt
00:00:13]} Qd6 {[%clk 00:02:01]} {[%emt 00:01:20]} 39. Rf2 {[%clk 00:00:31]}
{[%emt 00:00:48]} Qd1+ {[%clk 00:02:15]} {[%emt 00:00:15]} 40. Kh2 {[%clk
00:00:54]} {[%emt 00:00:08]} Qxc2 {[%clk 00:02:31]} {[%emt 00:00:14]} 41. Rxc2
{[%clk 00:01:18]} {[%emt 00:00:06]} Be4 {[%clk 00:02:30]} {[%emt 00:00:30]} 42.
Re2 {[%clk 00:00:50]} {[%emt 00:00:58]} f5 {[%clk 00:02:40]} {[%emt 00:00:20]}
43. g4 {[%clk 00:00:44]} {[%emt 00:00:36]} Rc8 {[%clk 00:02:49]} {[%emt
00:00:21]} 0-1